Workbook

Sheet 20170428
A1: 汕头职业技术学院采购窗布、窗轨规格明细
A4: 序号 | B4: 部门 | C4: 名称 | D4: 详细地点 | E4: 规格（高*宽） | F4: 规格（高*宽） | G4: 规格（高*宽） | H4: 规格（高*宽） | I4: 规格（高*宽） | J4: 规格（高*宽） | K4: 窗帘轨（米） | L4: 窗户数（个） | M4: 拉直面积㎡ | N4: 窗帘颜色 | O4: 备注
A5: 1 | B5: 东墩校区 | D5: 教学楼2101.2201.2301.2401 | E5: 250*230*4层 | F5: 250*255*2个*4层 | K5: 29.6 | L5: 12 | M5: 74 | N5: 绿色
A6: 2 | B6: 东墩校区 | D6: 教学楼2102.2202.2302.2402 | E6: 250*230*4层 | F6: 250*255*2个*4层 | K6: 29.6 | L6: 12 | M6: 74 | N6: 绿色
A7: 3 | B7: 东墩校区 | D7: 教学楼3楼 | E7: 240*145*3个 | F7: 240*240*3个 | K7: 11.55 | L7: 6 | M7: 27.72 | N7: 绿色
A8: 4 | B8: 东墩校区 | D8: 教学楼3号楼3704.3604.3504.3404.3304房 | E8: 220*270*2个*5层 | F8: 220*290*5层 | G8: 265*181*5层 | K8: 50.55 | L8: 20 | M8: 115.2825 | N8: 绿色
A9: 5 | B9: 东墩校区 | D9: 教学楼3号楼3703.3603.3503.3403.3303房 | E9: 220*405*5层 | F9: 220*415*5层 | K9: 41 | L9: 10 | M9: 90.2 | N9: 绿色
A10: 6 | B10: 东墩校区 | D10: 教学楼3号楼3702.3602.3502.3402.3302房 | E10: 220*415*5层 | F10: 220*405*5层 | K10: 41 | L10: 10 | M10: 90.2 | N10: 绿色
A11: 7 | B11: 东墩校区 | D11: 教学楼3号楼3701.3601.3501.3401.3301房 | E11: 220*270*5层 | F11: 220*270*5层 | G11: 265*182*5层 | K11: 36.1 | L11: 15 | M11: 83.515 | N11: 绿色
A12: 8 | B12: 东墩校区 | D12: 教学楼4号楼多媒体3号房 | E12: 230*345 | F12: 230*363 | G12: 230*295 | H12: 230*310 | K12: 13.13 | L12: 4 | M12: 30.199 | N12: 绿色
A13: 9 | B13: 东墩校区 | D13: 教学楼4号楼多媒体2号房 | E13: 230*345 | F13: 230*360 | G13: 230*295 | H13: 230*305 | K13: 13.05 | L13: 4 | M13: 30.015 | N13: 绿色
A14: 10 | B14: 东墩校区 | D14: 教学楼4号楼多媒体1号房 | E14: 230*170*2个 | F14: 230*345*2个 | G14: 230*335 | K14: 13.65 | L14: 5 | M14: 31.395 | N14: 绿色
A15: 11 | B15: 东墩校区 | D15: 教学楼6号楼机房4楼3号 | E15: 220*318 | F15: 220*206 | G15: 220*319 | H15: 250*318*4个 | K15: 21.15 | L15: 7 | M15: 50.346 | N15: 绿色
A16: 12 | B16: 东墩校区 | D16: 教学楼6号楼机房2号5楼 | E16: 240*316 | F16: 240*205 | G16: 240*320 | H16: 250*320 | I16: 250*318*3个 | K16: 21.15 | L16: 7 | M16: 52.034 | N16: 绿色
A17: 13 | B17: 东墩校区 | D17: 教学楼6号楼机房1号6楼 | E17: 240*305 | F17: 240*210 | G17: 240*320 | H17: 260*318*4个 | K17: 21.07 | L17: 7 | M17: 53.112 | N17: 绿色 | P17: =SUM(L2:L17) -> 119
A18: 14 | B18: 新津校区 | D18: 2号楼301、401、501、207、307、407、507 | E18: 250*323*3个*7间 | F18: 250*170*7间 | G18: 250*150*7间 | K18: 45.01 | L18: 35 | M18: 112.525 | N18: 绿色
A19: 15 | B19: 新津校区 | D19: 2号楼203、303、403、503、204、304、404、504、205、305、405、505 | E19: 250*235*2个*8间 | F19: 250*390*8间 | G19: 250*375*8间 | K19: 98.8 | L19: 32 | M19: 247 | N19: 绿色 | P19: =SUM(L13:L19) -> 97
A20: 16 | B20: 艺术体育系 | D20: 多媒体教室D301-304 | E20: 250*230/窗、4窗/间、共4间。 | K20: 36.8 | L20: 16 | M20: 92 | N20: 绿色
A21: 17 | B21: 艺术体育系 | D21: 琴房A105、106、108、111、112、113、115-127、129、130、132 | E21: 220*190/间、23间 | K21: 43.7 | L21: 23 | M21: 96.14 | N21: 绿色 | P21: 39
A22: 18 | B22: 机电工程系 | D22: 第二实训室101、102 | E22: 101A:280*290、280*365 | F22: 101B:280*290、280*365*2个、280*170*2个、280*560 | G22: 102A：280*310、280*140 | H22: 102B：280*362、280*290、280*140 | K22: 60.42 | L22: 19 | M22: 167.271 | N22: 绿色 | P22: 19
A23: 19 | B23: 机电工程系 | D23: 第二实训室103、301 | E23: 103A：280*365、280*290、280*280 | F23: 103B:280*365、280*290 | G23: 301:250*635 | K23: 22.25 | L23: 6 | M23: 60.4 | N23: 绿色
A24: 20 | B24: 外语系 | D24: 教学二区B304-305 | E24: 215*285/窗、共8个窗 | K24: 22.8 | L24: 8 | M24: 49.02 | N24: 绿色 | P24: 8
A25: 21 | B25: 现代教育技术中心 | C25: 本部第四机房 | D25: 实训楼四楼 | E25: 210*210*2个 | K25: 4.2 | L25: 2 | M25: 8.8 | N25: 绿色 | O25: 修布头、换轮
A26: 22 | B26: 现代教育技术中心 | C26: 本部第五机房 | D26: 实训楼四楼 | E26: 210*210 | K26: 2.1 | L26: 1 | M26: 4.41 | N26: 绿色
A27: 23 | B27: 现代教育技术中心 | C27: 本部第八机房 | D27: 实训楼五楼 | E27: 210*210*4个 | F27: 210*180*2个 | K27: 12 | L27: 6 | M27: 25.2 | N27: 绿色
A28: 24 | B28: 现代教育技术中心 | C28: 第一多媒体 | D28: 金园校区图书馆楼3楼 | K28: 9.16 | L28: 2 | N28: 绿色 | O28: 修布头、换轨
A29: 25 | B29: 现代教育技术中心 | C29: 第三计算机室 | D29: 金园校区实验楼7楼 | E29: 245*380*2个 | K29: 7.6 | L29: 2 | M29: 18.62 | N29: 绿色
A30: 26 | B30: 机电工程系 | C30: 整车拆装实训室 | D30: 第二实训楼105室 | E30: 280*200 | F30: 280*380 | K30: 5.8 | L30: 2 | M30: 16.24 | N30: 绿色
A31: 27 | B31: 计算机系 | C31: 综合布线实训室 | D31: 旧实训楼303 | E31: 230*215*4个 | F31: 230*205*2个 | K31: 12.7 | L31: 6 | M31: 29.21 | N31: 绿色
A32: 28 | B32: 计算机系 | C32: 网络基础实训室 | D32: 旧实训楼301 | E32: 230*215*4个 | F32: 230*205*2个 | K32: 12.7 | L32: 6 | M32: 29.21 | N32: 绿色
A33: 29 | B33: 计算机系 | C33: 计算机多媒体实训室 | D33: 教学一区A101 | E33: 220*160*2个 | F33: 280*200 | G33: 220*360*4个 | K33: 19.6 | L33: 7 | M33: 44.32 | N33: 绿色
A34: 30 | B34: 外语系 | C34: 第四语言实训室 | D34: 老实训中心3楼 | E34: 240*180*2个 | F34: 240*360*2个 | K34: 10.8 | L34: 4 | M34: 25.92 | N34: 绿色
A35: 31 | B35: 外语系 | C35: 商务礼仪实训室 | D35: 教学二区A102 | E35: 240*215*4个 | K35: 8.6 | L35: 4 | M35: 20.64 | N35: 绿色 | P35: =SUM(L33:L35) -> 15
A36: 32 | B36: 学前教育系 | C36: 舞蹈一室 | D36: 幼师教学楼1楼 | E36: 184*693 | F36: 184*265 | G36: 184*338*5个 | H36: 184*280 | I36: 184*306 | J36: 184*110 | K36: 33.44 | L36: 10 | M36: 61.5296 | N36: 绿色
A37: 33 | B37: 学前教育系 | C37: 舞蹈二室 | D37: 幼师综合楼2楼 | E37: 280*262*7个 | K37: 18.34 | L37: 7 | M37: 51.352 | N37: 绿色
A38: 34 | B38: 学前教育系 | C38: 舞蹈三室 | D38: 幼师综合楼2楼 | E38: 280*262*10个 | K38: 26.2 | L38: 10 | M38: 73.36 | N38: 绿色
A39: 35 | B39: 学前教育系 | C39: 微格教室 | D39: 幼师教学楼3楼6间 | E39: 235*260 | F39: 235*126 | G39: 235*170*4个 | K39: 10.66 | L39: 6 | M39: 25.051 | N39: 绿色
A40: 36 | B40: 学前教育系 | C40: 画室 | D40: 幼师教学楼6楼 | E40: 232*430 | F40: 232*210*2个 | G40: 232*160 | K40: 10.1 | L40: 4 | M40: 23.432 | N40: 绿色 | O40: 1个换轨
A41: 37 | B41: 学前教育系 | C41: 画室 | D41: 幼师教学楼7楼 | E41: 250*202 | F41: 250*164*4个 | K41: 8.58 | L41: 5 | M41: 21.45 | N41: 绿色 | P41: =SUM(L34:L41) -> 50
A42: 38 | B42: 艺体系 | C42: A408民乐实训室 | D42: 教学一区A408 | E42: 220*210*2个 | K42: 4.2 | L42: 2 | M42: 9.24 | N42: 绿色
A43: 39 | B43: 艺体系 | C43: 产品设计实训室 | D43: 第二实训楼406 | E43: 230*170*3个 | K43: 5.1 | L43: 4 | M43: 11.73 | N43: 绿色 | P43: =SUM(L41:L43) -> 11
A44: 40 | B44: 自然科学系 | C44: 生物实验室1 | D44: 实验楼401 | E44: 240*450*2个 | F44: 240*260*2个 | K44: 14.2 | L44: 4 | M44: 34.08 | N44: 绿色
A45: 41 | B45: 自然科学系 | C45: 生物实验室2 | D45: 实验楼403 | E45: 240*450*2个 | F45: 240*260*2个 | K45: 14.2 | L45: 4 | M45: 34.08 | N45: 绿色
A46: 42 | B46: 自然科学系 | C46: 动物标本室 | D46: 实验楼405 | E46: 240*450 | F46: 240*260 | K46: 7.1 | L46: 2 | M46: 17.04 | N46: 绿色
A47: 43 | B47: 自然科学系 | C47: 实验办公室 | D47: 图书馆楼502 | E47: 248*380*2个 | K47: 7.6 | L47: 2 | M47: 18.848 | N47: 绿色
A48: 44 | B48: 自然科学系 | C48: 音像、电化教育实验室 | D48: 图书馆楼302 | E48: 248*250*2个 | F48: 248*380*2个 | K48: 12.6 | L48: 4 | M48: 31.248 | N48: 绿色
A49: 45 | B49: 自然科学系 | C49: 地理实验室 | D49: 实验楼304 | E49: 240*250 | K49: 2.5 | L49: 1 | M49: 6 | N49: 绿色
A50: 46 | B50: 自然科学系 | C50: 教室 | D50: 图书馆楼503 | E50: 245*380 | K50: 3.8 | L50: 1 | M50: 9.31 | N50: 绿色
A51: 47 | B51: 自然科学系 | C51: 教室 | D51: 教学楼204 | E51: 235*180*2个 | K51: 3.6 | L51: 2 | M51: 8.46 | N51: 绿色
A52: 48 | B52: 人文社科系 | C52: 教室 | D52: 金园校区综合楼501 | E52: 190*165 | K52: 1.65 | L52: 1 | M52: 3.135 | N52: 绿色 | O52: 加轮、布叉
A53: 49 | B53: 机电系 | D53: 教二区D101教室 | E53: 215*240*4个 | K53: 9.6 | L53: 4 | M53: 20.64 | N53: 绿色
A54: 50 | B54: 机电系 | D54: 教二区D104教室 | E54: 215*240*4个 | K54: 9.6 | L54: 4 | M54: 20.64 | N54: 绿色
A55: 51 | B55: 机电系 | D55: 教二区D205教室 | E55: 215*240*4个 | K55: 9.6 | L55: 4 | M55: 20.64 | N55: 绿色
A56: 52 | B56: 机电系 | D56: 教二区D202教室 | E56: 215*240*4个 | K56: 9.6 | L56: 4 | M56: 20.64 | N56: 绿色
A57: 53 | B57: 机电系 | D57: 教二区D401教室 | E57: 215*240*4个 | K57: 9.6 | L57: 4 | M57: 20.64 | N57: 绿色
A58: 54 | B58: 机电系 | D58: 教二区D404教室 | E58: 215*240*4个 | K58: 9.6 | L58: 4 | M58: 20.64 | N58: 绿色
A59: 55 | B59: 机电系 | D59: 教二区C201教室 | E59: 215*240*4个 | K59: 9.6 | L59: 4 | M59: 20.64 | N59: 绿色
A60: 56 | B60: 机电系 | D60: 教二区C205教室 | E60: 215*240*4个 | K60: 9.6 | L60: 4 | M60: 20.64 | N60: 绿色
A61: 57 | B61: 机电系 | D61: 教二区B102教室 | E61: 340*255*2个 | F61: 260*225*2个 | K61: 9.6 | L61: 4 | M61: 29.04 | N61: 绿色
A62: 58 | B62: 机电系 | D62: 教二区A105教室 | E62: 250*240*4个 | K62: 9.6 | L62: 4 | M62: 24 | N62: 绿色
A63: 59 | B63: 机电系 | D63: 教二区D102教室 | E63: 215*240*4个 | K63: 9.6 | L63: 4 | M63: 20.64 | N63: 绿色
A64: 60 | B64: 机电系 | D64: 教二区D105教室 | E64: 215*240*4个 | K64: 9.6 | L64: 4 | M64: 20.64 | N64: 绿色
A65: 61 | B65: 机电系 | D65: 教二区D204教室 | E65: 215*240*4个 | K65: 9.6 | L65: 4 | M65: 20.64 | N65: 绿色
A66: 62 | B66: 机电系 | D66: 教二区D201教室 | E66: 215*240*4个 | K66: 9.6 | L66: 4 | M66: 20.64 | N66: 绿色
A67: 63 | B67: 机电系 | D67: 教二区D402教室 | E67: 215*240*4个 | K67: 9.6 | L67: 4 | M67: 20.64 | N67: 绿色
A68: 64 | B68: 机电系 | D68: 教二区D405教室 | E68: 215*240*4个 | K68: 9.6 | L68: 4 | M68: 20.64 | N68: 绿色
A69: 65 | B69: 机电系 | D69: 教二区C203教室 | E69: 215*240*4个 | K69: 9.6 | L69: 4 | M69: 20.64 | N69: 绿色
A70: 66 | B70: 机电系 | D70: 教二区B103教室 | E70: 340*255*2个 | F70: 260*225*2个 | K70: 9.6 | L70: 4 | M70: 29.04 | N70: 绿色
A71: 67 | B71: 机电系 | D71: 教二区B101教室 | E71: 260*225*2个 | F71: 250*390*2个 | K71: 12.3 | L71: 4 | M71: 31.2 | N71: 绿色
A72: 68 | B72: 机电系 | D72: 教二区A106教室 | E72: 250*240*4个 | K72: 9.6 | L72: 4 | M72: 24 | N72: 绿色 | P72: =SUM(L53:L72) -> 80
A73: 绿色窗布小计 | K73: =SUM(K5:K72) -> 1156.21 | L73: =SUM(L5:L72) -> 449 | M73: 2735.1701 | N73: =M73*1.6 -> 4376.27216 | O73: 折皱*1.6倍
A74: 1 | B74: 东墩校区 | D74: 学生科 | E74: 220*195*3个 | F74: 220*295*3个 | K74: 14.7 | L74: 6 | M74: 32.34 | N74: 米色
A75: 2 | B75: 东墩校区 | D75: 学生会、记者站 | E75: 220*160*2间 | F75: 220*200*2间 | K75: 7.2 | L75: 4 | M75: 15.84 | N75: 米色
A76: 3 | B76: 东墩校区 | D76: 教学楼2楼教务科 | E76: 230*145*3个 | F76: 230*240*3个 | K76: 11.55 | L76: 6 | M76: 26.565 | N76: 米色
A77: 4 | B77: 新津校区 | D77: 2号楼101、107 | E77: 250*270*2个*2间 | F77: 250*180*2个*2间 | K77: 18 | L77: 8 | M77: 45 | N77: 米色
A78: 5 | B78: 新津校区 | D78: 2号楼102、106 | E78: 250*150 | F78: 250*250 | K78: 8 | L78: 4 | M78: 20 | N78: 米色
A79: 6 | B79: 新津校区 | D79: 2号楼103、105 | E79: 250*180*2个*2间 | F79: 250*390*2个*2间 | K79: 22.8 | L79: 8 | M79: 57 | N79: 米色
A80: 7 | B80: 新津校区 | D80: 2号楼202、302、402、502、206教务、306、406、506 | E80: 250*270*8间 | F80: 250*160*8间 | K80: 34.4 | L80: 16 | M80: 86 | N80: 米色
A81: 8 | B81: 新津校区 | D81: 2号楼201 | E81: 250*323*3个 | F81: 250*170 | G81: 250*150 | K81: 6.43 | L81: 5 | M81: 16.075 | N81: 米色
A82: 9 | B82: 学前教育系 | D82: 教学楼、办公楼404.403.402.401.305.304.303.301.302.202 | E82: 240*240*2个*10间 | K82: 48 | L82: 20 | M82: 115.2 | N82: 米色
A83: 10 | B83: 学前教育系 | D83: 教学楼、办公楼206 | E83: 240*130 | F83: 240*258 | G83: 240*192 | H83: 240*208 | I83: 240*130 | J83: 240*76 | K83: 9.94 | L83: 6 | M83: 23.856 | N83: 米色
A84: 11 | B84: 学前教育系 | D84: 教学楼、办公楼305 | E84: 240*315 | F84: 240*150 | K84: 4.65 | L84: 2 | M84: 11.16 | N84: 米色
A85: 12 | B85: 学前教育系 | D85: 教学楼、办公楼311.411.511.611 | E85: 240*150*4间 | F85: 240*160*4间 | G85: 240*285*4间 | H85: 240*305*4间 | K85: 36 | L85: 16 | M85: 86.4 | N85: 米色
A86: 13 | B86: 学前教育系 | D86: 艺术楼教师办公室201 | E86: 240*275*2个 | K86: 5.5 | L86: 2 | M86: 13.2 | N86: 米色
A87: 14 | B87: 学前教育系 | D87: 艺术楼教师办公室418 | E87: 240*420 | F87: 240*835 | K87: 12.55 | L87: 2 | M87: 30.12 | N87: 米色
A88: 15 | B88: 学前教育系 | D88: 艺术楼教师办公室413 | E88: 240*340 | K88: 3.4 | L88: 1 | M88: 8.16 | N88: 米色
A89: 16 | B89: 学前教育系 | D89: 艺术楼教师办公室404 | E89: 240*304 | F89: 240*305 | K89: 6.09 | L89: 2 | M89: 14.616 | N89: 米色
A90: 17 | B90: 学前教育系 | D90: 舞蹈室教师办公室 | E90: 290*243*2个 | F90: 240*150*2个 | K90: 7.86 | L90: 4 | M90: 21.294 | N90: 米色 | P90: 55
A91: 18 | B91: 图书馆 | D91: 2楼 | E91: 外侧250*200 | F91: 外侧250*150 | G91: 外侧250*262*12个 | H91: 外侧250*200 | I91: 外侧250*340 | J91: 205*290*7个内侧 | K91: 60.64 | L91: 23 | M91: 142.465 | N91: 米色
A92: 19 | B92: 图书馆 | D92: 3楼理工类阅览室 | E92: 外侧250*262*12个 | F92: 外侧250*220 | G92: 外侧250*150 | H92: 外侧250*200 | I92: 205*290*7个内侧 | K92: 57.44 | L92: 22 | M92: 134.465 | N92: 米色
A93: 20 | B93: 图书馆 | D93: 5楼 | E93: 外侧250*200*2个 | F93: 外侧250*150*2个 | G93: 外侧250*262*12个 | I93: 205*290*7个内侧 | K93: 58.74 | L93: 23 | M93: 137.715 | N93: 米色 | P93: 68
A94: 21 | B94: 第二食堂 | D94: 教工餐厅 | E94: 250*290 | F94: 250*340 | G94: 250*2710 | H94: 250*290 | I94: 250*670 | K94: 43 | L94: 5 | M94: 107.5 | N94: 米色
A95: 22 | B95: 第二食堂 | D95: 餐厅接待室 | E95: 270*232 | F95: 270*520 | G95: 270*350 | H95: 270*720 | K95: 18.22 | L95: 4 | M95: 49.194 | N95: 米色 | P95: =SUM(L94:L95) -> 9
A96: 23 | B96: 自然科学系 | C96: 曾瑞海办公室 | D96: 教学楼东201 | E96: 130*152 | K96: 1.52 | L96: 1 | M96: 1.976 | N96: 米色 | P96: =SUM(L77:L96) -> 174
A97: 24 | B97: 计算机系 | C97: 学生科 | D97: A303 | E97: 230*335*2个 | F97: 230*215*2个 | K97: 11 | L97: 4 | M97: 25.3 | N97: 米色
A98: 25 | B98: 计算机系 | C98: 多功能会议室 | D98: D403 | E98: 260*230*2个 | F98: 260*220*2个 | K98: 9 | L98: 4 | M98: 23.4 | N98: 米色 | P98: =SUM(L97:L98) -> 8
A99: 26 | B99: 教务处 | C99: 办公室 | D99: 信息楼713 | E99: 280*205 | K99: 2.05 | L99: 1 | M99: 7 | N99: 米色
A100: 米色窗布小计 | K100: =SUM(K74:K99) -> 518.68 | L100: =SUM(L74:L99) -> 199 | M100: =SUM(M74:M99) -> 1251.841 | N100: =M100*1.6 -> 2002.9456 | O100: 折皱*1.6倍
A101: 1 | B101: 艺体系 | C101: 综合楼合唱室 | D101: 综合楼402 | K101: 13.2 | O101: 换轨
A102: 2 | B102: 经济管理系 | C102: 会计实务综合实训室 | D102: 第二实训楼501B | K102: 75 | L102: 9 | O102: 换轨
A103: 8 | B103: 保卫处 | D103: 办公室 | E103: 280*335*2个 | N103: 已经自行装好 | O103: 已经自行装好 | P103: 已经自行装好
A104: 1 | B104: 现代教育技术中心 | C104: 本部第一机房 | D104: 实训楼四楼 | O104: 换轨
A105: 2 | B105: 现代教育技术中心 | C105: 本部第二机房 | D105: 实训楼四楼 | O105: 修布头、换轨
A106: 5 | B106: 现代教育技术中心 | C106: 本部第七机房 | D106: 实训楼三楼 | O106: 修布头、换轮
A107: 7 | B107: 现代教育技术中心 | C107: 本部第九机房 | D107: 实训楼五楼 | O107: 换轨
A108: 8 | B108: 现代教育技术中心 | C108: 本部多媒体2 | D108: 实训楼三楼 | O108: 修布头、换轨
A109: 9 | B109: 现代教育技术中心 | C109: 本部多媒体3 | D109: 实训楼三楼 | O109: 修布头、换轮
A110: 12 | B110: 现代教育技术中心 | C110: 第二多媒体 | D110: 金园校区实验楼8楼802 | O110: 换轨
A111: 13 | B111: 现代教育技术中心 | C111: 第三多媒体 | D111: 金园校区实验楼8楼803 | O111: 换轨 | P111: =SUM(L96:L111) -> 218
A112: 1 | B112: 机电工程系 | C112: 汽车电器设备实训室 | D112: 第二实训楼101室 | O112: 机电系已报
A113: 2 | B113: 机电工程系 | C113: 汽车电子技术设备实训室 | D113: 第二实训楼102室 | O113: 机电系已报
A114: 3 | B114: 机电工程系 | C114: 电控发动机检修实训室 | D114: 第二实训楼103室 | O114: 机电系已报
A115: 5 | B115: 机电工程系 | C115: 三菱电梯实训室 | D115: 第二实训楼205室 | O115: 不申报 | P115: =SUM(L111:L115) -> 0
A116: 4 | B116: 计算机系 | C116: 计算机原理实训室 | D116: 信息楼202 | O116: 换轮 | P116: =SUM(L113:L116) -> 0
A117: 2 | B117: 外语系 | C117: 同声传译实验室 | D117: 教学二区B304 | O117: 已经量好
A118: 4 | B118: 学前教育系 | C118: 电脑二室 | D118: 幼师教学楼416 | O118: 换轨
A119: 6 | B119: 学前教育系 | C119: 小琴房、中琴房 | D119: 幼师艺术楼 | O119: 修布头、布叉
A120: 2 | B120: 经济管理系 | C120: ERP沙盘实训室 | D120: 第二实训楼502
A121: 3 | B121: 经济管理系 | C121: 电子商务实训室 | D121: 第二实训楼503
A122: 4 | B122: 经济管理系 | C122: 物流软件教学实训室 | D122: 第二实训楼505A
A123: 5 | B123: 自然科学系 | C123: 单片机实验室 | D123: 实验楼501 | O123: 免
A124: 6 | B124: 自然科学系 | C124: 光学、电子技术实验室 | D124: 实验楼502 | O124: 免
A125: 7 | B125: 自然科学系 | C125: 中教法实验室 | D125: 实验楼503 | O125: 加轮
A126: 10 | B126: 自然科学系 | C126: 电磁学实验室 | D126: 实验楼506 | O126: 免
A127: 11 | B127: 自然科学系 | C127: 力、热实验室 | D127: 实验楼507 | O127: 免
A128: 12 | B128: 自然科学系 | C128: 电工、家长电器实验室 | D128: 实验楼508 | O128: 免
A129: 14 | B129: 自然科学系 | C129: 地理实验室 | D129: 教学楼6楼 | O129: 免
A130: 16 | B130: 自然科学系 | C130: 教室 | D130: 图书馆楼501 | O130: 免
A131: 17 | B131: 自然科学系 | C131: 教室 | D131: 图书馆楼601 | O131: 换轨
A132: 19 | B132: 自然科学系 | C132: 教室 | D132: 教学楼503 | O132: 加布叉、轮
A133: 20 | B133: 自然科学系 | C133: 教室 | D133: 教学楼504 | O133: 换轨
A136: 窗布、窗轨合计 | K136: =SUM(K73,K100,K101:K133) -> 1763.09 | L136: =SUM(L73,L100,L104:L133) -> 648 | M136: =SUM(M73,M100,M104:M133) -> 3987.0111 | N136: =M136*1.6 -> 6379.21776 | O136: 折皱*1.6倍
